bitfinex-derivatives/quotes_BTCF0:USTF0_20250127
["timestamp","ask_amount","ask_price","bid_price","bid_amount"]
[1738008084468,0.3608,99849.0,99831.0,0.200446]
[1738008084768,0.0179172,99834.0,99831.0,0.561246]
[1738008085156,0.1123,99856.0,99831.0,0.561246]
[1738008085157,0.06528067,99839.0,99838.0,0.200432]
[1738008085465,0.17948266,99868.0,99862.0,0.200384]
[1738008085658,0.17948266,99868.0,99862.0,0.921984]
[1738008085855,0.17948266,99868.0,99867.0,0.200374]
[1738008087156,0.00299,99894.0,99878.0,0.200352]
[1738008087463,0.00299,99894.0,99878.0,0.921952]
[1738008087653,0.00299,99894.0,99878.0,0.7216]
[1738008087853,0.00299,99894.0,99893.0,0.561122]
[1738008088871,0.00299,99894.0,99893.0,0.3608]
[1738008089966,0.00299,99894.0,99884.0,0.00015023]
[1738008090158,0.200338,99885.0,99884.0,0.00015023]
[1738008090360,0.561138,99885.0,99884.0,0.00015023]
[1738008092160,0.20037,99870.0,99867.0,0.3608]
[1738008092361,0.200365,99872.0,99867.0,0.3608]
[1738008092768,0.3608,99875.0,99865.0,0.23706267]
[1738008092967,0.200376,99866.0,99865.0,0.23706267]
[1738008093571,0.3608,99875.0,99863.0,0.200382]
[1738008093572,0.200368,99870.0,99863.0,0.200382]
[1738008093868,0.37727687,99875.0,99863.0,0.200382]
[1738008094083,0.200378,99865.0,99860.0,0.00015023]
[1738008094268,0.200381,99864.0,99860.0,0.00015023]
[1738008095271,0.37791687,99875.0,99860.0,0.00015023]
[1738008095473,0.00015008,99880.0,99879.0,0.20035]
[1738008095661,0.00015008,99880.0,99879.0,0.56115]
[1738008096068,0.00015008,99880.0,99879.0,2.06115]
[1738008096677,0.00015008,99880.0,99879.0,2.06515]
[1738008096977,0.00015008,99880.0,99879.0,2.06615]
[1738008097159,0.00015008,99880.0,99879.0,2.06515]
[1738008098169,0.00015008,99880.0,99879.0,0.56515]
[1738008099175,0.00015008,99880.0,99879.0,0.56415]
[1738008099870,0.00015008,99880.0,99879.0,0.56215]
[1738008100070,0.00015008,99880.0,99879.0,0.56115]
[1738008102571,0.00015008,99880.0,99874.0,0.3608]
[1738008102771,0.200351,99879.0,99874.0,0.561161]
[1738008102970,0.00015008,99880.0,99877.0,0.200355]
[1738008103274,0.00015008,99880.0,99878.0,0.200352]
[1738008103976,0.00015008,99880.0,99878.0,0.500352]
[1738008103977,8e-08,99880.0,99878.0,0.500352]
[1738008104176,8e-08,99880.0,99878.0,0.51719108]
[1738008104478,8e-08,99880.0,99879.0,1.5]
[1738008104878,8e-08,99880.0,99879.0,1.8]
[1738008105379,8e-08,99880.0,99879.0,1.5]
[1738008107569,8e-08,99880.0,99879.0,1.700351]
[1738008108983,0.0578,99908.0,99879.0,1.5]
[1738008109285,0.0578,99908.0,99893.0,0.561123]
[1738008111485,0.0578,99908.0,99893.0,2.061123]
[1738008112777,0.3608,99906.0,99893.0,0.200323]
[1738008112983,0.3608,99903.0,99887.0,0.3608]
[1738008113179,0.056,99893.0,99892.0,0.200324]
[1738008116382,0.256323,99893.0,99891.0,0.3608]
[1738008116597,0.0031523,99894.0,99891.0,0.3608]
[1738008116787,0.0029923,99894.0,99893.0,0.200323]
[1738008117580,0.0029923,99894.0,99893.0,1.700323]
[1738008118584,0.0029923,99894.0,99893.0,1.5]
[1738008119084,0.0029923,99894.0,99892.0,1.04092731]
[1738008119287,0.0029923,99894.0,99892.0,1.04032731]
[1738008119590,0.2033143,99894.0,99892.0,0.67952731]
[1738008119788,0.1128,99893.0,99892.0,0.50152731]
[1738008120380,0.12984498,99893.0,99892.0,0.86232731]
[1738008120590,0.12984498,99893.0,99892.0,0.3608]
[1738008120884,0.0029923,99894.0,99893.0,0.200323]
[1738008121879,0.0029923,99894.0,99893.0,1.700323]
[1738008122386,0.0029923,99894.0,99893.0,1.5]
[1738008123882,0.0029923,99894.0,99893.0,1.51531369]
[1738008126887,0.200329,99890.0,99884.0,0.00015023]
[1738008127088,0.0029923,99894.0,99885.0,0.01535341]
[1738008127390,0.0029923,99894.0,99886.0,1.5]
[1738008127588,0.0029923,99894.0,99887.0,0.01535594]
[1738008127779,0.0029923,99894.0,99886.0,1.50056]
[1738008127982,0.200325,99893.0,99886.0,1.5]
[1738008128184,0.0029923,99894.0,99886.0,1.5]
[1738008128492,0.0029923,99894.0,99891.0,0.200327]
[1738008128680,0.0029923,99894.0,99892.0,0.3608]
[1738008128875,0.0029923,99894.0,99892.0,0.561125]
[1738008130387,0.0029923,99894.0,99886.0,1.50252]
[1738008130592,0.0029923,99894.0,99892.0,0.200325]
[1738008130888,0.0029923,99894.0,99893.0,0.200323]
[1738008132590,0.0029923,99894.0,99892.0,0.3608]
[1738008132992,0.0029923,99894.0,99893.0,0.200323]
[1738008133791,0.200329,99890.0,99886.0,1.50052]
[1738008134086,0.200332,99889.0,99886.0,1.5]
[1738008134294,0.0029923,99894.0,99888.0,0.200332]
[1738008134592,0.200327,99891.0,99888.0,0.200332]
[1738008134782,0.0029923,99894.0,99886.0,1.85576857]
[1738008134985,0.200335,99887.0,99886.0,1.85524857]
[1738008135182,0.200335,99887.0,99886.0,1.85624857]
[1738008135679,0.200335,99887.0,99886.0,1.85524857]
[1738008137081,0.0029923,99894.0,99886.0,1.85624857]
[1738008137390,0.0029923,99894.0,99893.0,0.200323]
[1738008137589,0.0029923,99894.0,99893.0,0.561123]
[1738008137989,0.0029923,99894.0,99893.0,2.061123]
[1738008138583,0.0029923,99894.0,99893.0,2.361123]
[1738008138792,0.0029923,99894.0,99893.0,2.061123]
[1738008141099,0.0029923,99894.0,99893.0,2.361123]
[1738008141790,0.0029923,99894.0,99893.0,2.061123]
[1738008141995,0.0029923,99894.0,99891.0,0.200326]
[1738008142196,0.0029923,99894.0,99893.0,0.200323]
[1738008142585,0.00615557,99900.0,99893.0,2.69119804]
[1738008142894,0.00615557,99900.0,99899.0,0.200311]
[1738008147188,0.00615557,99900.0,99899.0,1.700311]
[1738008148700,0.00299,99909.0,99908.0,0.200293]
[1738008148992,0.00299,99909.0,99908.0,0.561093]
[1738008153902,0.00299,99909.0,99908.0,2.061093]
[1738008154093,1e-06,99909.0,99908.0,2.07558187]
[1738008154706,1e-06,99909.0,99908.0,2.37558187]
[1738008155701,1e-06,99909.0,99908.0,2.07558187]
[1738008156403,1e-06,99909.0,99908.0,2.37558187]
[1738008158407,1e-06,99909.0,99908.0,2.07558187]
[1738008161623,1e-06,99909.0,99908.0,2.44560477]
[1738008162003,0.200219,99945.0,99923.0,0.200263]
[1738008162313,0.0562,99949.0,99923.0,0.561063]
[1738008162607,0.0562,99949.0,99923.0,2.061063]
[1738008162809,0.01456939,99942.0,99923.0,2.061063]
[1738008165006,0.200215,99947.0,99923.0,2.07510472]
[1738008166318,0.14437432,99940.0,99923.0,2.07510472]
[1738008166620,0.14437432,99940.0,99923.0,2.061063]
[1738008166818,0.200243,99934.0,99923.0,2.061063]
[1738008167014,0.14437432,99940.0,99923.0,2.061063]
[1738008167319,0.14437432,99940.0,99923.0,1.8608]
[1738008167614,0.20025,99930.0,99923.0,1.8608]
[1738008167819,0.01432085,99927.0,99923.0,1.8608]
[1738008168119,0.0613,99926.0,99923.0,1.8608]
[1738008168514,0.203251,99924.0,99923.0,1.8608]
[1738008168720,0.19888079,99924.0,99923.0,1.5]
[1738008169315,0.200273,99919.0,99917.0,0.29533659]
[1738008169711,0.200273,99919.0,99918.0,1.5]
[1738008171316,0.200273,99919.0,99918.0,1.501]
[1738008172819,0.200273,99919.0,99918.0,1.502]
[1738008173622,0.200273,99919.0,99918.0,1.5]
[1738008174022,0.200273,99919.0,99918.0,1.700274]
[1738008174821,0.200273,99919.0,99918.0,1.5]
[1738008179720,0.257762,99924.0,99918.0,1.8608]
[1738008179928,0.0575,99924.0,99923.0,0.200263]
[1738008180312,0.257761,99924.0,99923.0,0.200263]
[1738008180517,0.0575,99924.0,99923.0,1.700263]
[1738008181919,0.0719419,99924.0,99923.0,1.700263]
[1738008182231,0.0719419,99924.0,99914.0,0.00015015]
[1738008182232,0.200279,99915.0,99914.0,0.00015015]
[1738008182429,0.200316,99897.0,99892.0,0.3608]
[1738008182621,0.200316,99897.0,99896.0,1.7367087]
[1738008182820,0.200316,99897.0,99896.0,0.2367087]
[1738008183724,0.200316,99897.0,99896.0,0.0484087]
[1738008183928,0.050078,99898.0,99887.0,0.00015015]
[1738008184130,0.200334,99888.0,99887.0,0.00015015]
[1738008184316,0.200314,99898.0,99893.0,0.200323]
[1738008184621,0.0577,99899.0,99898.0,0.200314]
[1738008184935,0.00014988,99906.0,99896.0,0.001]
[1738008185114,0.01429479,99906.0,99900.0,0.200308]
[1738008185318,0.200302,99904.0,99896.0,0.001]
[1738008185519,0.01429479,99906.0,99896.0,0.001]
[1738008185920,0.00014988,99906.0,99905.0,0.200299]
[1738008186530,0.00014988,99906.0,99905.0,1.700299]
[1738008188832,0.1185722,99927.0,99926.0,0.200257]
[1738008189136,0.1185722,99927.0,99926.0,0.561057]
[1738008189526,0.1185722,99927.0,99926.0,2.061057]
[1738008191223,0.01598299,99936.0,99929.0,0.20025]
[1738008191427,0.01598299,99936.0,99934.0,0.3608]
[1738008194832,0.01598299,99936.0,99935.0,0.200239]
[1738008195343,0.01598299,99936.0,99934.0,0.3608]
[1738008195737,0.00150184,99936.0,99935.0,0.200239]
[1738008196540,0.00150184,99936.0,99930.0,0.200249]
[1738008196734,0.00150184,99936.0,99926.0,0.00052]
[1738008196957,0.00150184,99936.0,99934.0,0.20024]
[1738008197248,0.00150184,99936.0,99931.0,0.3608]
[1738008197843,0.00150184,99936.0,99932.0,1.5]
[1738008198039,0.200257,99927.0,99924.0,0.0603]
[1738008198249,0.3608,99931.0,99917.0,0.17770167]
[1738008198544,0.200273,99918.0,99917.0,0.17770167]
[1738008199557,0.3608,99948.0,99917.0,0.53850167]
[1738008199755,0.200249,99930.0,99929.0,0.3608]
[1738008199940,0.200253,99929.0,99917.0,0.53850167]
[1738008200143,0.27445848,99935.0,99931.0,0.200247]
[1738008200345,0.01291748,99935.0,99929.0,0.3608]
[1738008200545,0.0626,99947.0,99929.0,0.3608]
[1738008200943,0.203223,99939.0,99934.0,0.200241]
[1738008201151,0.20024,99935.0,99929.0,0.561051]
[1738008201349,0.1185722,99932.0,99929.0,0.3608]
[1738008201655,0.1185722,99932.0,99931.0,0.200247]
[1738008203844,0.1185722,99932.0,99929.0,0.3608]
[1738008204044,0.3188192,99932.0,99929.0,0.3608]
[1738008204255,0.200249,99930.0,99929.0,0.3608]
[1738008204844,0.200249,99930.0,99926.0,0.200257]
[1738008205053,0.20026,99925.0,99921.0,1.700826]
[1738008205358,0.200265,99922.0,99921.0,1.5]
[1738008205556,0.200265,99922.0,99917.0,0.36095015]
[1738008205557,0.200271,99920.0,99917.0,0.36095015]
[1738008205749,0.200273,99918.0,99917.0,0.00015015]
[1738008206763,0.21278367,99918.0,99917.0,0.00015015]
[1738008207347,0.21278367,99918.0,99917.0,0.00115015]
[1738008207652,0.200299,99905.0,99904.0,0.29605351]
[1738008207845,0.561099,99905.0,99904.0,1.79605351]
[1738008208250,0.561099,99905.0,99904.0,0.29605351]
[1738008208658,0.57394291,99905.0,99904.0,0.29605351]
[1738008208956,0.57394291,99905.0,99904.0,0.49835451]
[1738008209760,0.57394291,99905.0,99904.0,0.200301]
[1738008209960,0.57394291,99905.0,99904.0,0.205301]
[1738008210163,0.01284391,99905.0,99904.0,0.205301]
[1738008210352,0.05995015,99914.0,99903.0,1.50056]
[1738008210658,0.200298,99906.0,99905.0,0.200298]
[1738008211959,0.200301,99904.0,99903.0,1.50052]
[1738008212256,0.200301,99904.0,99903.0,1.700303]
[1738008212658,0.200301,99904.0,99903.0,1.5]
[1738008213059,0.200301,99904.0,99900.0,0.200308]
[1738008213060,0.200317,99896.0,99895.0,0.00015015]
[1738008213759,0.3608,99897.0,99895.0,0.00015015]
[1738008213965,0.3608,99897.0,99896.0,0.200317]
[1738008214166,0.01300972,99904.0,99895.0,0.00015015]
[1738008214456,0.200301,99904.0,99903.0,0.200303]
[1738008214863,0.01271323,99905.0,99904.0,0.200301]
[1738008215060,0.00015015,99914.0,99913.0,0.200283]
[1738008215463,0.00015015,99914.0,99913.0,1.700283]
[1738008215857,0.00015015,99914.0,99913.0,1.5]
[1738008216953,0.20043115,99914.0,99913.0,1.5]
[1738008217162,0.00015015,99914.0,99912.0,0.3608]
[1738008217361,0.200283,99913.0,99912.0,0.3608]
[1738008218461,0.00015015,99914.0,99897.0,1.50056]
[1738008218657,0.200313,99898.0,99897.0,1.5]
[1738008218849,0.200317,99896.0,99893.0,0.3608]
[1738008219251,0.200317,99896.0,99894.0,1.5]
[1738008219460,0.200317,99896.0,99894.0,1.50052]
[1738008220151,0.200317,99896.0,99894.0,0.00052]
[1738008220354,0.3,99896.0,99869.0,0.00150171]
[1738008220665,0.56117,99870.0,99869.0,0.00150171]
[1738008220867,0.3608,99870.0,99869.0,0.20187371]
[1738008221056,0.09626203,99879.0,99878.0,0.200354]
[1738008221367,0.200338,99886.0,99884.0,0.200341]
[1738008221566,0.20034,99885.0,99884.0,0.200341]
[1738008221762,0.0129263,99889.0,99881.0,0.3608]
[1738008221965,0.00015015,99894.0,99881.0,0.3608]
[1738008222261,0.00015015,99894.0,99893.0,0.200323]
[1738008224574,0.00015015,99894.0,99893.0,1.700323]
[1738008224962,0.20047115,99894.0,99893.0,1.700323]
[1738008225664,0.00015015,99894.0,99893.0,2.061123]
[1738008226671,0.08972143,99899.0,99898.0,0.200313]
[1738008226966,0.14953572,99912.0,99898.0,0.3608]
[1738008227169,0.14953572,99912.0,99911.0,0.561087]
[1738008228162,0.14953572,99912.0,99911.0,2.061087]
[1738008228561,0.14953572,99912.0,99911.0,1.8608]
[1738008228968,0.34982072,99912.0,99911.0,1.8608]
[1738008229274,0.14953572,99912.0,99911.0,1.8608]
[1738008229767,0.14953572,99912.0,99911.0,2.061088]
[1738008231778,0.01277101,99918.0,99913.0,0.200282]
[1738008231981,0.00015015,99921.0,99911.0,1.86132]
[1738008232275,0.01293515,99921.0,99911.0,0.3608]
[1738008232477,0.00015015,99921.0,99915.0,0.200278]
[1738008233065,0.00015015,99921.0,99920.0,0.3608]
[1738008233269,0.00015015,99921.0,99920.0,0.56107]
[1738008233779,0.09626203,99950.0,99935.0,0.200239]
[1738008234075,0.09626203,99940.0,99935.0,0.3608]
[1738008234378,0.200237,99937.0,99935.0,0.3608]
[1738008234679,0.200237,99937.0,99935.0,1.8608]
[1738008236174,0.200237,99937.0,99935.0,1.8618]
[1738008237680,0.20173884,99936.0,99935.0,1.8618]
[1738008238671,0.20173884,99936.0,99935.0,0.3618]
[1738008240669,0.20173884,99936.0,99935.0,0.001]
[1738008244582,0.20173884,99936.0,99926.0,0.00015015]
[1738008244583,0.200256,99927.0,99926.0,1e-08]
[1738008244878,0.3608,99927.0,99901.0,0.065]
[1738008245079,0.200306,99902.0,99901.0,0.200306]
[1738008245266,0.200325,99897.0,99896.0,0.200315]
[1738008245467,0.200326,99892.0,99891.0,0.49602868]
[1738008245676,0.06,99896.0,99895.0,0.20032]
[1738008245986,0.561085,99913.0,99912.0,0.200286]
[1738008246277,0.200272,99920.0,99919.0,0.200271]
[1738008246480,0.00015015,99922.0,99921.0,0.200267]
[1738008246785,0.00079015,99922.0,99921.0,0.200267]
[1738008246981,0.00015015,99922.0,99921.0,0.200267]
[1738008247983,0.20041515,99922.0,99921.0,0.200267]
[1738008248179,0.200269,99920.0,99919.0,0.0617]
[1738008248381,0.200281,99915.0,99912.0,0.00015015]
[1738008248572,0.200284,99913.0,99912.0,0.00015015]
[1738008248772,0.200284,99913.0,99912.0,0.20043615]
[1738008249078,0.200284,99913.0,99912.0,0.00015015]
[1738008249884,0.202284,99913.0,99912.0,0.00015015]
[1738008250475,0.002,99913.0,99912.0,0.20043615]
[1738008250677,0.050061,99932.0,99912.0,0.20043615]
[1738008250678,0.00150184,99936.0,99913.0,0.05007]
[1738008250882,0.00150184,99936.0,99935.0,0.561039]
[1738008252669,0.00250184,99936.0,99935.0,0.561039]
[1738008253886,0.00250184,99936.0,99935.0,0.621339]
[1738008254583,0.00250184,99936.0,99935.0,2.121339]
[1738008254787,0.01278994,99948.0,99938.0,0.200233]
[1738008255190,0.00299,99954.0,99938.0,0.200233]
[1738008255485,0.00299,99954.0,99953.0,0.200203]
[1738008256284,0.01492917,99954.0,99953.0,0.200203]
[1738008256471,0.00299,99954.0,99953.0,0.200203]
[1738008256887,0.00299,99954.0,99949.0,0.3608]
[1738008257077,0.00299,99954.0,99949.0,0.561011]
[1738008257478,0.36379,99954.0,99944.0,0.00015007]
[1738008257678,0.200219,99946.0,99944.0,0.00015007]
[1738008257986,0.36443,99954.0,99953.0,0.001]
[1738008258189,0.563991,99954.0,99953.0,0.001]
[1738008258687,0.36379,99954.0,99944.0,0.00015007]
[1738008258889,0.561019,99945.0,99944.0,0.00115007]
[1738008259278,0.200219,99945.0,99944.0,0.00015007]
[1738008260082,0.200219,99945.0,99944.0,0.00115007]
[1738008260389,0.200209,99950.0,99944.0,0.00115007]
[1738008260685,0.00299,99954.0,99952.0,0.200205]
[1738008261079,0.00299,99954.0,99953.0,1.5]
[1738008261584,0.00299,99954.0,99953.0,2.061003]
[1738008261888,0.00299,99954.0,99953.0,0.561003]
[1738008262281,0.00299,99954.0,99953.0,2.061003]
[1738008262585,0.00299,99954.0,99953.0,2.062003]
[1738008263276,0.01189829,99959.0,99958.0,0.200193]
[1738008263589,0.00299,99969.0,99954.0,0.1255]
[1738008263789,0.00299,99969.0,99968.0,0.560973]
[1738008263984,0.0148845,99969.0,99968.0,0.3608]
[1738008264187,0.00299,99969.0,99968.0,0.3608]
[1738008264389,0.00299,99969.0,99954.0,0.1255]
[1738008264583,0.203161,99969.0,99958.0,0.200193]
[1738008264784,0.00299,99969.0,99959.0,0.0587]
[1738008264977,0.200178,99966.0,99961.0,0.3608]
[1738008265176,0.200182,99964.0,99961.0,0.3608]
[1738008265787,0.01450395,99969.0,99961.0,0.3608]
[1738008266181,0.01450395,99969.0,99961.0,0.3618]
[1738008266788,0.01450395,99969.0,99967.0,0.200174]
[1738008266997,0.01450395,99969.0,99968.0,0.200173]
[1738008268294,0.00299,99969.0,99968.0,0.200173]
[1738008269084,0.00299,99969.0,99968.0,0.201173]
[1738008269280,0.00299,99969.0,99968.0,0.001]
[1738008269491,0.200183,99964.0,99961.0,0.3608]
[1738008269799,0.00299,99969.0,99961.0,0.3608]
[1738008269800,0.200185,99962.0,99961.0,0.3608]
[1738008270794,0.200174,99968.0,99961.0,0.3608]
[1738008270989,0.00299,99969.0,99961.0,0.3608]
[1738008271183,0.00299,99969.0,99959.0,0.25889]
[1738008271184,0.200189,99960.0,99959.0,0.0587]
[1738008271401,0.200181,99964.0,99961.0,0.001]
[1738008271695,0.200185,99962.0,99961.0,0.002]
[1738008272390,0.200185,99962.0,99961.0,0.001]
[1738008273898,0.200185,99962.0,99961.0,0.002]
[1738008274400,0.200217,99946.0,99945.0,0.23438758]
[1738008274600,0.561017,99946.0,99945.0,0.17367524]
[1738008276003,0.200219,99945.0,99937.0,0.200234]
[1738008276303,0.200219,99945.0,99938.0,0.200232]
[1738008276702,0.200219,99945.0,99935.0,1.50056]
[1738008277006,0.200219,99945.0,99935.0,1.5]
[1738008277908,0.21388247,99945.0,99935.0,1.5]
[1738008278094,0.37446347,99945.0,99931.0,0.17367524]
[1738008278403,0.200245,99932.0,99931.0,0.17367524]
[1738008278803,0.260945,99932.0,99931.0,0.17367524]
[1738008279193,0.260945,99932.0,99926.0,1.50052]
[1738008279194,0.0607,99932.0,99926.0,1.50052]
[1738008279508,0.200255,99927.0,99926.0,1.5]
[1738008280211,0.200263,99923.0,99922.0,0.00165103]
[1738008280606,0.200263,99923.0,99922.0,1.50165103]
[1738008282603,0.200263,99923.0,99922.0,1.70191603]
[1738008282803,0.200263,99923.0,99922.0,1.50165103]
[1738008283506,0.0625,99930.0,99922.0,1.50165103]
[1738008283813,0.200263,99923.0,99922.0,1.50165103]
[1738008284317,0.200263,99923.0,99922.0,0.00165103]
[1738008285402,0.200263,99923.0,99922.0,0.00015007]
[1738008285805,0.3608,99924.0,99905.0,1.5]
[1738008286002,0.09626203,99915.0,99914.0,0.200281]
[1738008286202,0.200252,99929.0,99928.0,0.200252]
[1738008286718,0.200257,99927.0,99925.0,0.200257]
[1738008287617,0.07240129,99932.0,99925.0,0.200257]
[1738008287618,0.01170129,99932.0,99931.0,0.200247]
[1738008287915,0.01169627,99936.0,99935.0,0.200239]
[1738008288214,0.01169627,99936.0,99935.0,1.700239]
[1738008288909,0.01169627,99936.0,99935.0,0.200239]
[1738008289300,0.01169627,99936.0,99932.0,1.5]
[1738008289505,0.200243,99933.0,99932.0,1.5]
[1738008289715,0.01169627,99936.0,99926.0,0.0572]
[1738008289907,0.200255,99928.0,99926.0,0.0572]
[1738008290302,0.200255,99927.0,99926.0,0.0572]
[1738008290702,0.200275,99917.0,99914.0,0.0562]
[1738008291413,0.3608,99917.0,99897.0,0.0566]
[1738008291610,0.200303,99904.0,99898.0,0.1187]
[1738008291806,0.200303,99904.0,99903.0,0.3608]
[1738008293812,0.21233123,99904.0,99903.0,0.3608]
[1738008294400,0.21233123,99904.0,99903.0,1.8608]
[1738008294605,0.21233123,99904.0,99903.0,1.8678]
[1738008294905,0.21233123,99904.0,99903.0,1.8708]
[1738008296300,0.21233123,99904.0,99903.0,0.01]
[1738008296919,0.21233123,99904.0,99903.0,1.51]
[1738008298013,0.01202823,99904.0,99903.0,2.071103]
[1738008298218,0.00015015,99913.0,99912.0,0.200285]
[1738008299532,0.01198661,99913.0,99912.0,0.200285]
[1738008299827,0.01198661,99913.0,99912.0,0.202285]
[1738008300210,0.21226961,99913.0,99912.0,0.002]
[1738008300428,0.21226961,99913.0,99912.0,0.006]
[1738008301818,0.200319,99895.0,99891.0,0.200327]
[1738008302029,0.200319,99895.0,99892.0,0.200324]
[1738008302223,0.200319,99895.0,99882.0,0.1204]
[1738008302422,0.200319,99895.0,99894.0,0.20047115]
[1738008302931,0.200319,99895.0,99894.0,0.00015015]
[1738008303512,0.200319,99895.0,99894.0,0.00315015]
[1738008304116,0.200319,99895.0,99894.0,0.00015015]
[1738008304323,0.200319,99895.0,99894.0,0.01015015]
[1738008304726,0.200319,99895.0,99894.0,0.00915015]
[1738008304924,0.00068,99899.0,99894.0,0.00915015]
[1738008305128,0.200314,99899.0,99898.0,0.200306]
[1738008305528,0.09626203,99904.0,99903.0,0.200303]
[1738008305529,0.29656403,99904.0,99903.0,0.200303]
[1738008305830,0.200302,99904.0,99903.0,0.200303]
[1738008306030,0.21180838,99904.0,99903.0,0.200303]
[1738008306333,0.200311,99899.0,99898.0,1.700871]
[1738008306520,0.200306,99904.0,99903.0,0.200303]
[1738008307434,0.01200119,99905.0,99898.0,0.005]
[1738008307627,0.200311,99899.0,99898.0,0.005]
[1738008307828,0.72224,99906.0,99895.0,0.00052]
[1738008308032,0.200319,99895.0,99894.0,0.00315015]
[1738008309335,0.200319,99895.0,99894.0,0.00615015]
[1738008310133,0.200319,99895.0,99894.0,0.00915015]
[1738008310635,0.00064,99896.0,99895.0,0.200319]
[1738008310835,0.01178023,99899.0,99898.0,0.200313]
[1738008311625,0.200317,99896.0,99895.0,0.0595]
[1738008311824,0.200317,99896.0,99895.0,0.0645]
[1738008312434,0.36152,99908.0,99895.0,0.0595]
[1738008312736,0.200313,99898.0,99897.0,0.200315]
[1738008312938,0.200317,99896.0,99895.0,0.0615]
[1738008313327,0.200317,99896.0,99895.0,0.002]
[1738008313731,0.0578,99899.0,99895.0,0.002]
[1738008314036,0.200341,99884.0,99883.0,0.29570268]
[1738008314230,0.561141,99884.0,99883.0,0.29570268]
[1738008315940,0.200341,99884.0,99883.0,0.29570268]
[1738008316532,0.21185867,99884.0,99883.0,0.49604668]
[1738008316942,0.21185867,99884.0,99883.0,0.29770268]
[1738008317129,0.21185867,99884.0,99883.0,0.002]
[1738008317330,0.21185867,99884.0,99883.0,0.007]
[1738008318131,0.01151767,99884.0,99883.0,0.207344]
[1738008318333,0.201016,99887.0,99886.0,0.200338]
[1738008318532,0.200336,99887.0,99886.0,1.700338]
[1738008319249,0.21480553,99887.0,99886.0,1.700338]
[1738008319447,0.21480553,99887.0,99886.0,0.200338]
[1738008319744,0.20034,99885.0,99884.0,0.0614]
[1738008319943,0.20034,99885.0,99884.0,0.261742]
[1738008320833,0.20034,99885.0,99884.0,0.0634]
[1738008321046,0.20034,99885.0,99884.0,0.006]
[1738008321848,0.0566,99886.0,99864.0,0.29570268]
[1738008322035,0.561158,99876.0,99864.0,0.29570268]
[1738008322234,0.20036,99875.0,99864.0,0.29570268]
[1738008322544,0.20036,99875.0,99874.0,1e-08]
[1738008323635,0.20036,99875.0,99874.0,0.00200001]
[1738008324253,0.20036,99875.0,99874.0,0.00500001]
[1738008324637,0.200378,99866.0,99851.0,0.0585]
[1738008324847,0.561178,99866.0,99851.0,0.0585]
[1738008325156,0.200406,99852.0,99851.0,0.0585]
[1738008326752,0.200406,99852.0,99851.0,0.0595]
[1738008326949,0.200406,99852.0,99851.0,0.001]
[1738008327338,0.21905842,99852.0,99851.0,0.003]
[1738008327743,0.21905842,99852.0,99851.0,0.203408]
[1738008328656,0.01865242,99852.0,99851.0,0.203408]
[1738008328951,0.200399,99856.0,99855.0,0.200394]
[1738008329341,0.200399,99856.0,99855.0,1.700394]
[1738008330337,0.200399,99856.0,99855.0,1.701394]
[1738008330843,0.1147267,99861.0,99855.0,1.701394]
[1738008330844,0.1147267,99861.0,99855.0,0.001]
[1738008331049,0.00015015,99861.0,99860.0,0.20039]
[1738008331244,0.09626203,99880.0,99861.0,0.050096]
[1738008331445,0.3608,99885.0,99884.0,0.200342]
[1738008331651,0.37914758,99885.0,99884.0,0.200342]
[1738008332444,0.37914758,99885.0,99875.0,0.00015015]
[1738008332757,0.57948758,99885.0,99881.0,0.200347]
[1738008332967,0.57948758,99885.0,99883.0,0.200344]
[1738008333254,0.57948758,99885.0,99882.0,0.0557]
[1738008333255,0.37914758,99885.0,99882.0,0.0557]
[1738008333552,0.02934758,99885.0,99884.0,0.201342]
[1738008333940,0.02834758,99885.0,99884.0,0.200342]
[1738008335254,0.02934758,99885.0,99884.0,0.200342]
[1738008335855,0.02634758,99885.0,99883.0,0.0614]
[1738008336155,0.200343,99883.0,99882.0,0.001]
[1738008336355,0.39014758,99885.0,99864.0,0.0568]
[1738008336356,0.108285,99884.0,99864.0,0.0568]
[1738008336555,0.200366,99872.0,99871.0,0.23746402]
[1738008336765,0.200384,99863.0,99862.0,0.29570268]
[1738008336950,0.561184,99863.0,99862.0,0.29570268]
[1738008338660,0.561184,99863.0,99862.0,0.49608868]
[1738008339356,0.36659015,99872.0,99871.0,0.200368]
[1738008339551,0.36095015,99872.0,99871.0,0.200368]
[1738008339752,0.200402,99855.0,99854.0,0.200399]
[1738008339947,0.561202,99855.0,99854.0,0.200399]
[1738008340461,0.3608,99855.0,99854.0,0.200402]
[1738008340856,0.29663303,99870.0,99869.0,0.200372]
[1738008341158,0.00515015,99872.0,99871.0,0.200368]
[1738008341348,0.00515015,99872.0,99871.0,0.561168]
[1738008341543,0.200343,99883.0,99871.0,2.061168]
[1738008341860,0.45706203,99890.0,99871.0,2.061168]
[1738008341861,0.45706203,99881.0,99872.0,0.680165]
[1738008342161,0.200363,99873.0,99872.0,0.4192]
[1738008342357,0.200363,99873.0,99872.0,0.0584]
[1738008343048,0.050091,99872.0,99854.0,0.0616]
[1738008343360,0.200393,99859.0,99855.0,0.0561]
[1738008343557,0.09626203,99864.0,99855.0,0.0561]
[1738008343755,0.200402,99854.0,99846.0,0.200417]
[1738008344148,0.200402,99854.0,99844.0,0.0561]
[1738008344551,0.200402,99854.0,99830.0,0.262048]
[1738008344750,0.200402,99854.0,99833.0,0.0602]
[1738008344966,0.200424,99843.0,99842.0,0.17529553]
[1738008345157,0.200438,99836.0,99824.0,0.00150243]
[1738008346265,0.200438,99836.0,99826.0,0.00015023]
[1738008346564,0.201438,99836.0,99835.0,0.012]
[1738008346759,0.21936248,99836.0,99835.0,0.012]
[1738008347066,0.05011,99835.0,99820.0,0.00352]
[1738008347260,0.561268,99821.0,99820.0,0.003]
[1738008349063,0.561268,99821.0,99820.0,0.005]